Workbook

Sheet Лист1
A1: Отчет
A2: о результатах мониторинга качества финансового менеджмента, осуществляемого главными администраторами средств районного бюджета
A3: за 2020 год
A5: № | B5: Наименование главного администратора средств районного бюджета | C5: КВСР | D5: 1.1. Своевременность представления предварительного (планового) реестра расходных обязательств | F5: 1.2. Полнота информации о расходных обязательствах | H5: 1.3. Сроки представления обоснований бюджетных ассигнований на очередной финансовый год | J5: 1.4. Охват в обоснованиях бюджетных ассигнований на очередной финансовый год | L5: 1.5. Доля бюджетных ассигнований, представленных в программном виде | N5: 1.6. Сумма внесенных изменений в бюджетную роспись в связи с уточнением ассигнований по решению Земского собрания | R5: 1.7. Сумма внесенных положительных изменений в бюджетную роспись в отчетном периоде в связи с передвижками между кодами бюджетной классификации | T5: 1. Финансовое планирование | V5: 2.1. Кассовое исполнение расходов | X5: 2.2. Равномерность осуществляемых расходов | Z5: 2.3. Своевременность принятия бюджетных обязательств | AB5: 2.4. Качество прогнозирования кассовых расходов | AD5: 2.5. Уровень подготовки платежных документов | AF5: 2.6. Качество исполнения расходов | AG5: 2. Исполнение бюджета в части расходов | AI5: 3.1. Качество правовой базы главного администратора доходов районного бюджета по администрированию доходов | AJ5: 3.2. Полнота зачисления платежей в районный бюджет по главному администратору доходов районного бюджета, объем невыясненных поступлений | AL5: 3.3. Отклонение кассового исполнения по доходам от прогноза по главному администратору доходов районного бюджета | AN5: 3.4. Эффективность управления дебиторской задолженностью по расчетам с дебиторами по доходам | AP5: 3.Исполнение бюджета в части доходов | AR5: 4.1. Подготовка и внедрение управленческого учета | AS5: 4.2. Динамика объема материальных запасов | AU5: 4.3. Коэффициент сложности исполнения бюджетных ассигнований | AW5: 4. Учет и отчетность | AY5: 5.1. Осуществление мероприятий внутреннего контроля | AZ5: 5.2. Регулярность проведения ГРБС мероприятий муниципального контроля | BB5: 5.3. Доля недостач и хищений денежных средств и материальных ценностей | BD5: 5. Контроль и аудит | BF5: 6.1. Качество исполнения бюджетных обязательств | BH5: 6. Исполнение судебных актов | BJ5: 7.1. Исполнение планов финансово-хозяйственной деятельности по доходам (по всем видам финансового обеспечения) | BL5: 7.2. Равномерность расходов, осуществляемых бюджетными и автономными учреждениями за счет субсидий на выполнение муниципальных заданий | BN5: 7.3. Уровень использования субсидий бюджетными и автономными учреждениями, предоставленных на выполнение муниципального заданий | BP5: 7.4. Уровень подготовки платежных документов бюджетными и автономными учреждениями | BR5: 7.5. Качество осуществления расходов бюджетными и автономными учреждениями | BS5: 7. Бюджетные и автономные учреждения | BU5: И Т О Г О по главному администратору средств районного бюджета
N6: положительных | P6: отрицательных
D7: значение показателя | E7: количество баллов | F7: значение показателя | G7: количество баллов | H7: значение показателя | I7: количество баллов | J7: значение показателя | K7: количество баллов | L7: значение показателя | M7: количество баллов | N7: значение показателя | O7: количество баллов | P7: значение показателя | Q7: количество баллов | R7: значение показателя | S7: количество баллов | T7: значение показателя | U7: количество баллов | V7: значение показателя | W7: количество баллов | X7: значение показателя | Y7: количество баллов | Z7: значение показателя | AA7: количество баллов | AB7: значение показателя | AC7: количество баллов | AD7: значение показателя | AE7: количество баллов | AF7: количество баллов | AG7: значение показателя | AH7: количество баллов | AI7: количество баллов | AJ7: значение показателя | AK7: количество баллов | AL7: значение показателя | AM7: количество баллов | AN7: значение показателя | AO7: количество баллов | AP7: значение показателя | AQ7: количество баллов | AR7: количество баллов | AS7: значение показателя | AT7: количество баллов | AU7: значение показателя | AV7: количество баллов | AW7: значение показателя | AX7: количество баллов | AY7: количество баллов | AZ7: значение показателя | BA7: количество баллов | BB7: значение показателя | BC7: количество баллов | BD7: значение показателя | BE7: количество баллов | BF7: значение показателя | BG7: количество баллов | BH7: значение показателя | BI7: количество баллов | BJ7: значение показателя | BK7: количество баллов | BL7: значение показателя | BM7: количество баллов | BN7: значение показателя | BO7: количество баллов | BP7: значение показателя | BQ7: количество баллов | BR7: количество баллов | BS7: значение показателя | BT7: количество баллов | BU7: количество баллов | BV7: max возможная сумма баллов | BW7: Общий показатель качества финансового менеджмента главного администратра средств районного бюджета (гр.59/гр.60)*100%
A8: 1 | B8: 2 | C8: 3 | D8: 4 | E8: 5 | F8: 6 | G8: 7 | H8: 8 | I8: 9 | J8: 10 | K8: 11 | L8: 12 | M8: 13 | N8: 14 | O8: 15 | P8: 16 | Q8: 17 | R8: 18 | S8: 19 | T8: 20 | U8: 21 | V8: 22 | W8: 23 | X8: 24 | Y8: 25 | Z8: 26 | AA8: 27 | AB8: 28 | AC8: 29 | AD8: 30 | AE8: 31 | AF8: 32 | AG8: 33 | AH8: 34 | AI8: 35 | AJ8: 36 | AK8: 37 | AL8: 38 | AM8: 39 | AN8: 40 | AO8: 41 | AP8: 42 | AQ8: 43 | AR8: 44 | AS8: 45 | AT8: 46 | AU8: 47 | AV8: 48 | AW8: 49 | AX8: 50 | AY8: 51 | AZ8: 52 | BA8: 53 | BB8: 54 | BC8: 55 | BD8: 56 | BE8: 57 | BF8: 58 | BG8: 59 | BH8: 60 | BI8: 61 | BJ8: 62 | BK8: 63 | BL8: 64 | BM8: 65 | BN8: 66 | BO8: 67 | BP8: 68 | BQ8: 69 | BR8: 70 | BS8: 71 | BT8: 72 | BU8: 73 | BV8: 74 | BW8: 75
B9: 1 группа
A10: 1 | B10: Администрация района | C10: 487 | D10: 0 | E10: 5 | F10: 0 | G10: 5 | H10: 0 | I10: 5 | J10: 100 | K10: 5 | L10: 75.7 | M10: 6 | N10: 98.2 | O10: 10 | P10: 105.7 | Q10: 8 | R10: 99.3 | S10: 10 | T10: =D10+F10+H10+J10+L10+N10+P10+R10 -> 478.9 | U10: =E10+G10+I10+K10+M10+O10+Q10+S10 -> 54 | V10: 98.8 | W10: 10 | X10: 125.8 | Y10: 0 | Z10: 89.4 | AA10: 6 | AB10: 99.8 | AC10: 10 | AD10: 99.1 | AE10: 7 | AF10: 7.3 | AG10: =V10+X10+Z10+AB10+AD10 -> 512.9 | AH10: =W10+Y10+AA10+AC10+AE10+AF10 -> 40.3 | AI10: 8 | AJ10: 0 | AK10: 5 | AL10: 1.54 | AM10: 10 | AN10: 0 | AO10: 10 | AP10: =AJ10+AL10+AN10 -> 1.54 | AQ10: =AI10+AK10+AM10+AO10 -> 33 | AR10: 10 | AS10: 124.2 | AT10: 0 | AU10: 86.8 | AV10: 6 | AW10: =AS10+AU10 -> 211 | AX10: =AR10+AT10+AV10 -> 16 | AY10: 5 | AZ10: 0 | BA10: 0 | BB10: 0 | BC10: 5 | BD10: =AZ10+BB10 -> 0 | BE10: =AY10+BA10+BC10 -> 10 | BF10: 0 | BG10: 5 | BH10: =BF10 -> 0 | BI10: =BG10 -> 5 | BJ10: 94.7 | BK10: 8 | BL10: 26.7 | BM10: 10 | BN10: 96.2 | BO10: 10 | BP10: 99.5 | BQ10: 7 | BR10: 8.7 | BS10: =BJ10+BL10+BN10+BP10 -> 317.1 | BT10: =BK10+BM10+BO10+BQ10+BR10 -> 43.7 | BU10: =U10+AH10+AQ10+AX10+BE10+BI10+BT10 -> 202 | BV10: 255 | BW10: =SUM(BU10/BV10)*100 -> 79.21568627
A11: 2 | B11: Управление образования и молодежной политики | C11: 074 | D11: 0 | E11: 5 | F11: 0 | G11: 5 | H11: 0 | I11: 5 | J11: 100 | K11: 5 | L11: 99.9 | M11: 10 | N11: 99.1 | O11: 10 | P11: 100.7 | Q11: 4 | R11: 98.9 | S11: 10 | T11: =D11+F11+H11+J11+L11+N11+P11+R11 -> 498.6 | U11: =E11+G11+I11+K11+M11+O11+Q11+S11 -> 54 | V11: 98.6 | W11: 10 | X11: 42.3 | Y11: 5 | Z11: 93.8 | AA11: 10 | AB11: 98.9 | AC11: 10 | AD11: 98.7 | AE11: 7 | AF11: 8.6 | AG11: =V11+X11+Z11+AB11+AD11 -> 432.3 | AH11: =W11+Y11+AA11+AC11+AE11+AF11 -> 50.6 | AI11: 8 | AJ11: 0 | AK11: 5 | AL11: 100 | AM11: 0 | AN11: 0 | AO11: 10 | AP11: =AJ11+AL11+AN11 -> 100 | AQ11: =AI11+AK11+AM11+AO11 -> 23 | AR11: 10 | AS11: 143.8 | AT11: 0 | AU11: 837.3 | AV11: 10 | AW11: 981.1 | AX11: =AR11+AT11+AV11 -> 20 | AY11: 5 | AZ11: 0 | BA11: 0 | BB11: 0 | BC11: 5 | BD11: =AZ11+BB11 -> 0 | BE11: =AY11+BA11+BC11 -> 10 | BF11: 0 | BG11: 5 | BH11: =BF11 -> 0 | BI11: =BG11 -> 5 | BJ11: 98.2 | BK11: 8 | BL11: 54.9 | BM11: 0 | BN11: 91.1 | BO11: 6 | BP11: 96.5 | BQ11: 7 | BR11: 7.3 | BS11: =BJ11+BL11+BN11+BP11 -> 340.7 | BT11: =BK11+BM11+BO11+BQ11+BR11 -> 28.3 | BU11: =U11+AH11+AQ11+AX11+BE11+BI11+BT11 -> 190.9 | BV11: 255 | BW11: =SUM(BU11/BV11)*100 -> 74.8627451
A12: 3 | B12: Отдел культуры | C12: 057 | D12: 0 | E12: 5 | F12: 0 | G12: 5 | H12: 0 | I12: 5 | J12: 100 | K12: 5 | L12: 96.2 | M12: 10 | N12: 99.7 | O12: 10 | P12: 101 | Q12: 4 | R12: 99.9 | S12: 10 | T12: 496.8 | U12: 54 | V12: 99.9 | W12: 10 | X12: 9.4 | Y12: 10 | Z12: 97.2 | AA12: 10 | AB12: 99.9 | AC12: 10 | AD12: 100 | AE12: 10 | AF12: 10 | AG12: 406.4 | AH12: 60 | AI12: 8 | AJ12: 0 | AK12: 5 | AL12: 0 | AM12: 10 | AN12: 0 | AO12: 10 | AP12: 0 | AQ12: 33 | AR12: 10 | AS12: 0 | AT12: 10 | AU12: 831 | AV12: 10 | AW12: 831 | AX12: 30 | AY12: 5 | AZ12: 0 | BA12: 0 | BB12: 0 | BC12: 5 | BD12: 0 | BE12: 10 | BF12: 0 | BG12: 5 | BH12: 0 | BI12: 5 | BJ12: 98.2 | BK12: 8 | BL12: 19.2 | BM12: 10 | BN12: 93.4 | BO12: 6 | BP12: 99.4 | BQ12: 7 | BR12: 8.7 | BS12: 310.2 | BT12: 39.7 | BU12: =U12+AH12+AQ12+AX12+BE12+BI12+BT12 -> 231.7 | BV12: 255 | BW12: =SUM(BU12/BV12)*100 -> 90.8627451
B13: 2 группа
A14: 1 | B14: Финансовое управление | C14: 001 | D14: 0 | E14: 5 | F14: 0 | G14: 5 | H14: 0 | I14: 5 | J14: 100 | K14: 5 | L14: 97.8 | M14: 10 | N14: 93.1 | O14: 8 | P14: 105 | Q14: 8 | R14: 99.5 | S14: 10 | T14: 495.4 | U14: 56 | V14: 97.2 | W14: 10 | X14: 70 | Y14: 0 | Z14: 100 | AA14: 10 | AB14: 98 | AC14: 10 | AD14: 100 | AE14: 10 | AF14: 10 | AG14: 465.2 | AH14: =W14+Y14+AA14+AC14+AE14+AF14 -> 50 | AI14: 8 | AJ14: 0 | AK14: 5 | AL14: 0 | AM14: 10 | AN14: 0 | AO14: 10 | AP14: 0 | AQ14: 33 | AR14: 10 | AS14: 99.8 | AT14: 0 | AU14: 57.2 | AV14: 6 | AW14: 157 | AX14: 16 | AY14: 5 | AZ14: 1 | BA14: 5 | BB14: 0 | BC14: 5 | BD14: 1 | BE14: 15 | BF14: 0 | BG14: 5 | BH14: 0 | BI14: 5 | BU14: 175 | BV14: 205 | BW14: =SUM(BU14/BV14)*100 -> 85.36585366
A15: 2 | B15: Управление сельского хозяйства | C15: 082 | D15: 0 | E15: 5 | F15: 0 | G15: 5 | H15: 0 | I15: 5 | J15: 100 | K15: 5 | L15: 100 | M15: 10 | N15: 100 | O15: 10 | P15: 100.3 | Q15: 4 | R15: 97.3 | S15: 10 | T15: 497.6 | U15: 54 | V15: 100 | W15: 10 | X15: -50.9 | Y15: 10 | Z15: 100 | AA15: 10 | AB15: 100 | AC15: 10 | AD15: 100 | AE15: 10 | AF15: 7.3 | AG15: 349.1 | AH15: 57.3 | AI15: 8 | AJ15: 0 | AK15: 5 | AL15: 0 | AM15: 10 | AN15: 0 | AO15: 10 | AP15: 0 | AQ15: 33 | AR15: 10 | AS15: 31.25 | AT15: 0 | AU15: 50 | AV15: 3 | AW15: 81.25 | AX15: 13 | AY15: 5 | AZ15: 11 | BA15: 5 | BB15: 0 | BC15: 5 | BD15: 11 | BE15: 15 | BF15: 0 | BG15: 5 | BH15: 0 | BI15: 5 | BU15: 177.3 | BV15: 205 | BW15: =SUM(BU15/BV15)*100 -> 86.48780488
E17: 5 | G17: 5 | I17: 5 | K17: 5 | M17: 10 | O17: 10 | Q17: 10 | S17: 10 | W17: 10 | Y17: 10 | AA17: 10 | AC17: 10 | AE17: 10 | AF17: 10 | AI17: 10 | AK17: 5 | AM17: 10 | AO17: 10 | AR17: 10 | AT17: 10 | AV17: 10 | AY17: 5 | BA17: 5 | BC17: 5 | BG17: 5 | BK17: 10 | BM17: 10 | BO17: 10 | BQ17: 10 | BR17: 10 | BV17: =SUM(E17:BU17) -> 255 | BW17: =SUM(BW10:BW15) -> 416.794835
E18: 5 | G18: 5 | I18: 5 | K18: 5 | M18: 10 | O18: 10 | Q18: 10 | S18: 10 | W18: 10 | Y18: 10 | AA18: 10 | AC18: 10 | AE18: 10 | AF18: 10 | AI18: 10 | AK18: 5 | AM18: 10 | AO18: 10 | AR18: 10 | AT18: 10 | AV18: 10 | AY18: 5 | BA18: 5 | BC18: 5 | BG18: 5 | BV18: =SUM(E18:BU18) -> 205 | BW18: =BW17/5 -> 83.358967
N19: =SUM(N10:N15) -> 490.1 | P19: =SUM(P10:P15) -> 512.7 | Q19: =SUM(Q10:Q15) -> 28 | R19: =SUM(R10:R15) -> 494.9 | V19: =SUM(V10:V15) -> 494.5 | Z19: =SUM(Z10:Z15) -> 480.4 | AE19: =SUM(AE10:AE15) -> 44 | BN19: =SUM(BN10:BN12) -> 280.7
N20: =N19/5 -> 98.02 | V20: =V19/5 -> 98.9 | Z20: =Z19/5 -> 96.08 | AE20: =AE19/5 -> 8.8 | BN20: =BN19/3 -> 93.56666667
